bitfinex/quotes_BTCUSD_20250224
["timestamp","ask_amount","ask_price","bid_price","bid_amount"]
[1740357250104,0.31820272,96485.0,96484.0,0.09799076]
[1740357250409,0.31520272,96485.0,96484.0,0.09799076]
[1740357250612,0.16173872,96485.0,96484.0,0.09799076]
[1740357250840,0.159464,96485.0,96484.0,0.20063645]
[1740357251045,0.155464,96485.0,96484.0,0.02219076]
[1740357251233,0.157464,96485.0,96484.0,0.02219076]
[1740357251657,0.156464,96485.0,96484.0,0.04155233]
[1740357251790,0.157464,96485.0,96484.0,0.04155233]
[1740357252717,0.306464,96485.0,96484.0,0.04155233]
[1740357252841,0.309464,96485.0,96484.0,0.04155233]
[1740357253047,0.308464,96485.0,96484.0,0.04155233]
[1740357253467,0.308464,96485.0,96484.0,0.02219076]
[1740357253854,0.312464,96485.0,96484.0,0.02219076]
[1740357255109,0.157,96485.0,96484.0,0.02219076]
[1740357255904,0.157,96485.0,96484.0,0.12483645]
[1740357256520,0.157,96485.0,96484.0,0.12808106]
[1740357256720,0.153,96485.0,96484.0,0.12808106]
[1740357257483,0.155,96485.0,96484.0,0.12808106]
[1740357258307,0.15,96485.0,96484.0,0.12808106]
[1740357258543,0.154,96485.0,96484.0,0.12808106]
[1740357260291,0.154,96485.0,96484.0,0.12483645]
[1740357261234,0.004,96485.0,96484.0,0.12483645]
[1740357261450,0.00782105,96490.0,96484.0,0.12483645]
[1740357261650,0.155463,96486.0,96485.0,0.10264569]
[1740357262952,0.155463,96486.0,96485.0,0.10589029]
[1740357263951,0.157463,96486.0,96485.0,0.10589029]
[1740357265218,0.157463,96486.0,96485.0,0.0032446]
[1740357266321,0.157463,96486.0,96484.0,0.0017004]
[1740357266698,0.001,96486.0,96484.0,0.0017004]
[1740357266949,0.155464,96485.0,96484.0,0.0017004]
[1740357268440,0.158464,96485.0,96484.0,0.0017004]
[1740357269795,0.161464,96485.0,96484.0,0.0017004]
[1740357288171,0.311464,96485.0,96484.0,0.0017004]
[1740357288986,0.308464,96485.0,96484.0,0.0017004]
[1740357289351,0.310464,96485.0,96484.0,0.0017004]
[1740357289548,0.314464,96485.0,96484.0,0.0017004]
[1740357291200,0.309464,96485.0,96484.0,0.0017004]
[1740357291396,0.315464,96485.0,96484.0,0.0017004]
[1740357291921,0.849855,96485.0,96484.0,0.0017004]
[1740357292124,2.220967,96485.0,96484.0,0.0017004]
[1740357292343,1.612234,96485.0,96484.0,0.0017004]
[1740357292549,1.608234,96485.0,96484.0,0.0017004]
[1740357293104,1.537443,96485.0,96484.0,0.0017004]
[1740357293310,0.54431,96485.0,96484.0,0.0017004]
[1740357293534,0.55131,96485.0,96484.0,0.0017004]
[1740357295408,0.55131,96485.0,96484.0,4e-07]
[1740357295647,0.55131,96485.0,96471.0,0.0004]
[1740357295648,0.305485,96472.0,96471.0,0.0004]
[1740357296504,0.31599214,96472.0,96471.0,0.0004]
[1740357297134,0.31999214,96472.0,96471.0,0.0004]
[1740357298239,0.32499214,96472.0,96471.0,0.0004]
[1740357301854,0.32499214,96472.0,96471.0,0.0012501]
[1740357302436,0.16950714,96472.0,96471.0,0.0012501]
[1740357302645,0.32499214,96472.0,96471.0,0.0012501]
[1740357305661,0.32499214,96472.0,96471.0,0.0815501]
[1740357310489,0.32499214,96472.0,96471.0,0.0012501]
[1740357337196,0.31999214,96472.0,96471.0,0.0012501]
[1740357337442,0.32499214,96472.0,96471.0,0.0012501]
[1740357338076,0.31999214,96472.0,96471.0,0.0012501]
[1740357338291,0.32499214,96472.0,96471.0,0.0012501]
[1740357339650,0.32499214,96472.0,96471.0,0.0813501]
[1740357347149,0.32499214,96472.0,96471.0,0.0763501]
[1740357355651,0.305488,96470.0,96465.0,0.0831]
[1740357356774,0.305488,96470.0,96457.0,0.0784]
[1740357357177,0.993989,96470.0,96457.0,0.0784]
[1740357357380,1.013504,96470.0,96457.0,0.0784]
[1740357357581,1.005504,96470.0,96457.0,0.0784]
[1740357357786,1.012504,96470.0,96457.0,0.0784]
[1740357357995,1.019504,96470.0,96457.0,0.0784]
[1740357358149,1.012504,96470.0,96457.0,0.0784]
[1740357358775,1.019504,96470.0,96457.0,0.0784]
[1740357360279,1.019504,96470.0,96452.0,0.081]
[1740357361121,0.670478,96470.0,96452.0,0.081]
[1740357364484,0.663478,96470.0,96452.0,0.081]
[1740357364843,0.155525,96447.0,96445.0,0.0775]
[1740357365049,0.155525,96447.0,96433.0,0.0462]
[1740357365050,0.15554,96438.0,96437.0,0.0775]
[1740357365262,0.15554,96438.0,96437.0,0.07792883]
[1740357366863,0.15554,96438.0,96437.0,0.00042883]
[1740357366864,0.30554,96438.0,96437.0,0.00042883]
[1740357367029,0.30554,96438.0,96437.0,0.00691346]
[1740357367272,0.30554,96438.0,96437.0,0.00042883]
[1740357367778,0.30554,96438.0,96437.0,0.00691346]
[1740357367947,0.31675879,96438.0,96437.0,0.00950731]
[1740357368548,0.31675879,96438.0,96437.0,0.00042883]
[1740357369543,0.31575879,96438.0,96437.0,0.00042883]
[1740357369742,0.31875879,96438.0,96437.0,0.00042883]
[1740357370370,0.32275879,96438.0,96437.0,0.00042883]
[1740357372385,0.31975879,96438.0,96437.0,0.00042883]
[1740357372591,0.31575879,96438.0,96437.0,0.00042883]
[1740357372772,0.32375879,96438.0,96437.0,0.00042883]
[1740357373075,0.31975879,96438.0,96437.0,0.00042883]
[1740357373216,0.31575879,96438.0,96437.0,0.00042883]
[1740357373418,0.32375879,96438.0,96437.0,0.00042883]
[1740357377067,0.31975879,96438.0,96437.0,0.00042883]
[1740357377269,0.31575879,96438.0,96437.0,0.00042883]
[1740357377471,0.32575879,96438.0,96437.0,0.00042883]
[1740357377798,0.32075879,96438.0,96437.0,0.00042883]
[1740357378697,1.45808897,96438.0,96437.0,0.00042883]
[1740357378870,2.82598779,96438.0,96437.0,0.00042883]
[1740357379071,0.80231079,96438.0,96437.0,0.00042883]
[1740357379275,0.64151079,96438.0,96437.0,0.00042883]
[1740357379721,0.64251079,96438.0,96437.0,0.00042883]
[1740357379879,0.63651079,96438.0,96437.0,0.00042883]
[1740357380083,0.65051079,96438.0,96437.0,0.00042883]
[1740357383853,0.74353882,96438.0,96437.0,0.00042883]
[1740357384463,0.65051079,96438.0,96437.0,0.00042883]
[1740357385201,0.65051079,96438.0,96437.0,0.00127913]
[1740357387364,0.60987279,96438.0,96437.0,0.00127913]
[1740357388089,0.33775879,96438.0,96437.0,0.00127913]
[1740357388489,0.33075879,96438.0,96437.0,0.00127913]
[1740357388689,0.32275879,96438.0,96437.0,0.00127913]
[1740357389438,0.31575879,96438.0,96437.0,0.00127913]
[1740357389656,0.32275879,96438.0,96437.0,0.00127913]
[1740357390130,1.23511179,96438.0,96437.0,0.00127913]
[1740357390369,1.62783879,96438.0,96437.0,0.00127913]
[1740357390605,0.32275879,96438.0,96437.0,0.00127913]
[1740357390855,1.91185179,96438.0,96437.0,0.00127913]
[1740357391055,0.85243779,96438.0,96437.0,0.00127913]
[1740357391294,0.48113479,96438.0,96437.0,0.00127913]
[1740357391498,0.48411679,96438.0,96437.0,0.00127913]
[1740357391882,0.5003632,96438.0,96437.0,0.00127913]
[1740357392015,0.4813802,96438.0,96437.0,0.00127913]
[1740357392232,0.4743802,96438.0,96437.0,0.00127913]
[1740357392650,0.4813802,96438.0,96437.0,0.00127913]
[1740357392891,0.4673802,96438.0,96437.0,0.00127913]
[1740357393111,0.4743802,96438.0,96437.0,0.00127913]
[1740357393312,0.4813802,96438.0,96437.0,0.00127913]
[1740357393657,0.4743802,96438.0,96437.0,0.00127913]
[1740357393997,0.4813802,96438.0,96437.0,0.00127913]
[1740357396694,0.3460052,96438.0,96437.0,0.00127913]
[1740357398056,0.4766852,96438.0,96437.0,0.00127913]
[1740357398259,0.3460052,96438.0,96437.0,0.00127913]
[1740357398530,0.32975879,96438.0,96437.0,0.00127913]
[1740357403025,0.17421879,96438.0,96437.0,0.00127913]
[1740357403223,0.32975879,96438.0,96437.0,0.00127913]
[1740357408712,0.32975879,96438.0,96437.0,0.00953488]
[1740357408868,0.32975879,96438.0,96437.0,0.00127913]
[1740357409426,0.02421879,96438.0,96437.0,0.00127913]
[1740357409633,0.02421879,96438.0,96437.0,0.17892482]
[1740357409784,0.02421879,96438.0,96437.0,0.34271445]
[1740357410167,0.02421879,96438.0,96437.0,0.18717345]
[1740357410589,0.01721879,96438.0,96437.0,0.18717345]
[1740357410752,0.02421879,96438.0,96437.0,0.18717345]
[1740357411400,0.01021879,96438.0,96437.0,0.18717345]
[1740357411600,0.007,96438.0,96437.0,0.18841765]
[1740357411822,0.02419414,96438.0,96437.0,0.18717345]
[1740357412026,0.007,96438.0,96437.0,0.18717345]
[1740357412500,0.014,96438.0,96437.0,0.34271445]
[1740357412921,0.014,96438.0,96437.0,0.23347345]
[1740357413759,0.007,96438.0,96437.0,0.23347345]
[1740357413960,0.014,96438.0,96437.0,0.23347345]
[1740357414306,0.014,96438.0,96437.0,0.38901445]
[1740357414507,0.00772533,96455.0,96442.0,0.155532]
[1740357414622,0.15,96454.0,96445.0,0.10842123]
[1740357414822,0.15,96454.0,96446.0,0.00823898]
[1740357415228,0.328,96461.0,96448.0,0.0801]
[1740357415431,0.155518,96452.0,96448.0,0.0801]
[1740357415632,0.155518,96452.0,96449.0,0.00823353]
[1740357416052,0.155518,96452.0,96448.0,0.0801]
[1740357416453,0.155518,96452.0,96449.0,0.00823353]
[1740357416912,0.155518,96452.0,96448.0,0.0801]
[1740357417401,0.162518,96452.0,96449.0,0.00823353]
[1740357417772,0.162518,96452.0,96448.0,0.0801]
[1740357418205,0.169518,96452.0,96449.0,0.00823353]
[1740357418324,0.162518,96452.0,96449.0,0.00823353]
[1740357418526,0.162518,96452.0,96448.0,0.0801]
[1740357418726,0.169518,96452.0,96449.0,0.00823353]
[1740357418931,0.162518,96452.0,96448.0,0.0801]
[1740357419127,0.155519,96451.0,96449.0,0.00823353]
[1740357419335,0.155519,96451.0,96448.0,0.0801]
[1740357419559,0.155522,96449.0,96448.0,0.0801]
[1740357420953,0.155532,96443.0,96441.0,0.0811]
[1740357421973,0.162532,96443.0,96442.0,0.11087038]
[1740357422439,0.169532,96443.0,96442.0,0.11087038]
[1740357424065,0.169532,96443.0,96442.0,0.00822469]
[1740357424425,0.155533,96442.0,96441.0,0.0811]
[1740357425655,0.15,96460.0,96441.0,0.18374569]
[1740357425859,0.007,96442.0,96441.0,0.0811]
[1740357426063,0.007,96442.0,96441.0,0.34052486]
[1740357426274,0.007,96442.0,96441.0,0.38768069]
[1740357426504,0.013,96442.0,96441.0,0.38768069]
[1740357426933,0.013,96442.0,96441.0,0.39092659]
[1740357427056,0.006,96442.0,96441.0,0.39092659]
[1740357427690,0.155505,96460.0,96441.0,0.23539159]
[1740357427931,0.155505,96460.0,96453.0,0.0819]
[1740357428137,0.155505,96460.0,96454.0,0.10264569]
[1740357428542,0.207334,96463.0,96454.0,0.10264569]
[1740357429192,0.007,96460.0,96454.0,0.10264569]
[1740357429351,0.007,96460.0,96455.0,0.0457]
[1740357429557,0.007,96460.0,96459.0,0.0825]
[1740357429978,0.014,96460.0,96459.0,0.0825]
[1740357430406,0.007,96460.0,96459.0,0.0825]
[1740357430721,0.014,96460.0,96459.0,0.0825]
[1740357430923,0.007,96460.0,96459.0,0.0825]
[1740357431128,0.01759828,96463.0,96459.0,0.0825]
[1740357431321,0.007,96463.0,96460.0,0.10264569]
[1740357431502,0.0017006,96469.0,96460.0,0.09564569]
[1740357431700,0.0017006,96469.0,96460.0,0.08988961]
[1740357432086,0.1571916,96469.0,96461.0,0.00124387]
[1740357432309,0.007,96463.0,96462.0,0.10264569]
[1740357432546,0.0017006,96469.0,96462.0,0.10264569]
[1740357432938,0.0017006,96469.0,96463.0,0.00124387]
[1740357433143,0.0017006,96469.0,96464.0,0.10264569]
[1740357433457,0.01218858,96469.0,96464.0,0.10264569]
[1740357434027,0.01918858,96469.0,96460.0,0.15774689]
[1740357434206,0.01918858,96469.0,96461.0,0.10264569]
[1740357434405,0.01918858,96469.0,96462.0,0.08264387]
[1740357434607,0.18867858,96469.0,96464.0,0.001]
[1740357434805,0.18867858,96469.0,96463.0,0.10264569]
[1740357434806,0.02618858,96469.0,96463.0,0.10264569]
[1740357435370,0.01918858,96469.0,96463.0,0.10264569]
[1740357435574,0.02618858,96469.0,96463.0,0.10264569]
[1740357435801,0.03318858,96469.0,96463.0,0.10264569]
[1740357436038,0.18167858,96469.0,96463.0,0.10264569]
[1740357436724,0.155492,96468.0,96463.0,0.10264569]
[1740357436955,0.17467858,96469.0,96463.0,0.10364569]
[1740357437188,0.17767858,96469.0,96463.0,0.10364569]
[1740357437388,0.18467858,96469.0,96463.0,0.10464569]
[1740357437621,0.17067858,96469.0,96463.0,0.10364569]
[1740357437838,0.007,96468.0,96463.0,0.10364569]
[1740357438089,0.007,96468.0,96463.0,0.10464569]
[1740357438332,0.16767858,96469.0,96463.0,0.10364569]
[1740357438560,0.17467858,96469.0,96463.0,0.10364569]
[1740357438798,0.17467858,96469.0,96463.0,0.10264569]
[1740357439046,0.007,96468.0,96463.0,0.10364569]
[1740357439786,0.007,96468.0,96466.0,0.155494]
[1740357440018,0.007,96468.0,96467.0,0.18564569]
[1740357440514,0.01216446,96469.0,96467.0,0.18564569]
[1740357440758,0.003,96468.0,96467.0,0.18564569]
[1740357441356,0.01,96468.0,96467.0,0.18664569]
[1740357441558,0.003,96468.0,96467.0,0.18564569]
[1740357441662,0.01216446,96469.0,96467.0,0.18564569]
[1740357441880,0.007,96468.0,96467.0,0.18664569]
[1740357442962,0.01,96468.0,96467.0,0.18764569]
[1740357443166,0.003,96468.0,96467.0,0.18664569]
[1740357443374,0.01216446,96469.0,96467.0,0.18564569]
[1740357443579,0.01916446,96469.0,96467.0,0.18664569]
[1740357443774,0.003,96468.0,96467.0,0.18664569]
[1740357444216,0.007,96468.0,96467.0,0.18664569]
[1740357444427,0.007,96468.0,96467.0,0.18564569]
[1740357444727,0.007,96468.0,96467.0,0.18764569]
[1740357444946,0.01516446,96469.0,96467.0,0.18664569]
[1740357445303,0.007,96468.0,96467.0,0.18764569]
[1740357445900,0.162491,96468.0,96467.0,0.18664569]
[1740357446289,0.01,96468.0,96467.0,0.18764569]
[1740357446492,0.01,96468.0,96467.0,0.18664569]
[1740357446493,0.003,96468.0,96467.0,0.18664569]
[1740357446685,0.158491,96468.0,96467.0,0.084]
[1740357446887,0.158491,96468.0,96467.0,0.085]
[1740357447137,0.158491,96468.0,96467.0,0.001]
[1740357447516,0.165491,96468.0,96467.0,0.002]
[1740357449031,0.01,96468.0,96467.0,0.002]
[1740357450069,0.165491,96468.0,96467.0,0.002]
[1740357450275,0.01,96468.0,96467.0,0.002]
[1740357452281,0.165491,96468.0,96467.0,0.002]
[1740357452410,0.01,96468.0,96467.0,0.002]
[1740357452816,0.165491,96468.0,96467.0,0.002]
[1740357456161,0.165491,96468.0,96467.0,0.00524514]
[1740357456380,0.01,96468.0,96467.0,0.00524514]
[1740357457017,0.165491,96468.0,96467.0,0.00524514]
[1740357461812,0.01,96468.0,96467.0,0.00524514]
[1740357462445,0.01,96468.0,96467.0,0.26338383]
[1740357465451,0.01,96468.0,96467.0,0.26857535]
[1740357470117,0.0117,96468.0,96467.0,0.26857535]
[1740357478763,0.0017,96468.0,96467.0,0.26657535]
[1740357479191,0.0087,96468.0,96467.0,0.26757535]
[1740357479399,0.0087,96468.0,96467.0,0.26657535]
[1740357479804,0.0127,96468.0,96467.0,0.26657535]
[1740357480005,0.0157,96468.0,96467.0,0.26757535]
[1740357480607,0.0127,96468.0,96467.0,0.26657535]
[1740357480822,0.0157,96468.0,96467.0,0.26657535]
[1740357486294,0.0157,96468.0,96467.0,0.27490032]
[1740357488759,0.0157,96468.0,96467.0,0.11940732]
[1740357488956,0.0157,96468.0,96467.0,0.27490032]
[1740357497980,0.02620766,96468.0,96467.0,0.11940732]
[1740357499893,0.02620766,96468.0,96467.0,0.11702604]
[1740357500628,0.02620766,96468.0,96467.0,0.10858938]
[1740357503715,0.18169866,96468.0,96467.0,0.10858938]
[1740357504288,0.02620766,96468.0,96467.0,0.10858938]
[1740357504725,0.02620766,96468.0,96467.0,0.12888382]
[1740357506915,0.02620766,96468.0,96467.0,0.02623813]
[1740357506916,0.25879866,96468.0,96467.0,0.02623813]
[1740357507132,0.25879866,96468.0,96467.0,0.00594369]
[1740357507335,0.155496,96465.0,96464.0,0.00085]
[1740357507994,0.204496,96465.0,96464.0,0.00085]
[1740357508635,0.206496,96465.0,96464.0,0.00085]
[1740357508842,0.210496,96465.0,96464.0,0.00085]
[1740357512769,0.208496,96465.0,96464.0,0.00085]
[1740357514151,0.207496,96465.0,96464.0,0.00085]
[1740357514500,0.211496,96465.0,96464.0,0.00085]
[1740357514707,0.208496,96465.0,96464.0,0.00085]
[1740357514908,0.211496,96465.0,96464.0,0.00085]
[1740357516612,0.162496,96465.0,96464.0,0.00085]
[1740357517058,0.164196,96465.0,96464.0,0.00085]
[1740357517844,0.0087,96465.0,96464.0,0.00085]
[1740357518877,0.0087,96465.0,96464.0,0.34675547]
[1740357520221,0.0047,96465.0,96464.0,0.19450224]
[1740357520641,0.0077,96465.0,96464.0,0.19450224]
[1740357520850,0.0047,96465.0,96464.0,0.19450224]
[1740357521051,0.0047,96465.0,96464.0,0.11370224]
[1740357521279,0.0067,96465.0,96464.0,0.11370224]
[1740357521893,0.0067,96465.0,96464.0,0.11045747]
[1740357526314,0.162196,96465.0,96464.0,0.11045747]
[1740357527337,0.162196,96465.0,96464.0,0.10349569]
[1740357538449,0.162196,96465.0,96464.0,0.00085]
[1740357544219,0.31343997,96465.0,96464.0,0.00085]
[1740357544433,0.312196,96465.0,96464.0,0.00085]
[1740357545435,0.310196,96465.0,96464.0,0.00085]
[1740357545692,0.315196,96465.0,96464.0,0.00085]
[1740357546152,0.307196,96465.0,96464.0,0.00085]
[1740357546416,0.313196,96465.0,96464.0,0.00085]
[1740357546873,0.319196,96465.0,96464.0,0.00085]
[1740357551585,0.420645,96465.0,96464.0,0.00085]
[1740357564659,0.420645,96465.0,96464.0,0.02132756]
[1740357566111,0.408645,96465.0,96464.0,0.02132756]
[1740357566489,0.421645,96465.0,96464.0,0.02232756]
[1740357566673,0.320196,96465.0,96464.0,0.02232756]
[1740357567056,1.30569,96465.0,96464.0,0.02232756]
[1740357567264,1.29869,96465.0,96464.0,0.02232756]
[1740357568113,1.29269,96465.0,96464.0,0.02132756]
[1740357568316,1.29969,96465.0,96464.0,0.02132756]
[1740357568681,1.30669,96465.0,96464.0,0.02132756]
[1740357568884,1.29969,96465.0,96464.0,0.02132756]
[1740357569082,1.30669,96465.0,96464.0,0.02132756]
[1740357569337,1.30669,96465.0,96464.0,0.00085]
[1740357569996,1.38889,96465.0,96464.0,0.00085]
[1740357570201,1.43469,96465.0,96464.0,0.00085]
[1740357570519,0.155532,96443.0,96442.0,0.0788503]
[1740357570722,0.155532,96443.0,96442.0,0.07927913]
[1740357570933,0.155532,96443.0,96442.0,0.08736864]
[1740357571140,0.155532,96443.0,96442.0,0.07927913]
[1740357574554,0.16599066,96443.0,96442.0,0.07927913]
[1740357575807,0.01045866,96443.0,96442.0,0.07927913]
[1740357576018,0.01245866,96443.0,96442.0,0.18192482]
[1740357576222,0.002,96443.0,96442.0,0.19001923]
[1740357576825,0.002,96443.0,96442.0,0.18192482]
[1740357577259,0.157532,96443.0,96442.0,0.19001967]
[1740357577611,0.1681063,96443.0,96442.0,0.19001967]
[1740357578413,0.32596744,96443.0,96442.0,0.00937398]
[1740357578789,0.93989944,96443.0,96442.0,0.00937398]
[1740357578997,0.30554,96438.0,96437.0,4.3e-07]
[1740357579205,0.30554,96438.0,96437.0,0.00012893]
[1740357579421,0.30554,96438.0,96437.0,8.893e-05]
[1740357580003,0.207379,96442.0,96437.0,8.893e-05]
[1740357580244,0.155539,96439.0,96437.0,8.893e-05]
[1740357580451,0.155539,96439.0,96438.0,0.00810378]
[1740357580905,0.155539,96439.0,96437.0,8.893e-05]
[1740357581079,0.00124397,96438.0,96437.0,8.893e-05]
[1740357581834,0.15124397,96438.0,96437.0,8.893e-05]
[1740357582290,0.80812897,96438.0,96437.0,8.893e-05]
[1740357582488,0.15,96438.0,96437.0,8.893e-05]
[1740357582702,0.15124397,96438.0,96437.0,8.893e-05]
[1740357583113,0.15,96438.0,96437.0,8.893e-05]
[1740357583361,0.156,96438.0,96437.0,8.893e-05]
[1740357585083,0.161,96438.0,96437.0,8.893e-05]
[1740357586291,0.16224397,96438.0,96437.0,8.893e-05]
[1740357586692,0.161,96438.0,96437.0,8.893e-05]
[1740357588552,0.161,96438.0,96437.0,0.00093913]
[1740357590567,0.011,96438.0,96437.0,0.00093913]
[1740357590979,0.011,96438.0,96437.0,0.00906292]
[1740357591192,0.011,96438.0,96437.0,0.00093913]
[1740357591827,0.01224397,96438.0,96437.0,0.00093913]
[1740357592045,0.011,96438.0,96437.0,0.00906292]
[1740357592254,0.011,96438.0,96437.0,0.00093913]
[1740357592457,0.16654,96438.0,96437.0,0.00093913]
[1740357592836,0.011,96438.0,96437.0,0.00093913]
[1740357594100,0.011,96438.0,96437.0,0.12663913]
[1740357594894,0.011,96438.0,96437.0,0.13476292]
[1740357595716,0.011,96438.0,96437.0,0.23740861]
[1740357600034,0.0127008,96438.0,96437.0,0.23740861]
[1740357600649,0.0127008,96438.0,96437.0,0.39294961]
[1740357601519,0.0017008,96438.0,96437.0,0.39294961]
[1740357601952,0.0107008,96438.0,96437.0,0.39619502]
[1740357602163,0.0067008,96438.0,96437.0,0.39619502]
[1740357603203,0.0017008,96438.0,96437.0,0.39619502]
[1740357603408,0.0017008,96438.0,96437.0,0.72149502]
[1740357603626,0.0017008,96438.0,96437.0,0.72249502]
[1740357604038,0.0017008,96438.0,96437.0,0.7266873]
[1740357604451,0.0027008,96438.0,96437.0,0.7286873]
[1740357604869,0.0017008,96438.0,96437.0,0.7266873]
[1740357606407,0.0027008,96438.0,96437.0,0.7276873]
[1740357607490,0.0027008,96438.0,96437.0,0.72249502]
[1740357609256,0.1582408,96438.0,96437.0,0.56695402]
[1740357609465,0.0027008,96438.0,96437.0,0.57469923]
[1740357609665,0.0017008,96438.0,96437.0,0.52459923]
[1740357609872,0.0027008,96438.0,96437.0,0.52559923]
[1740357610335,0.0027008,96438.0,96437.0,0.52235382]
[1740357610476,0.0017008,96438.0,96437.0,0.52135382]
[1740357610677,0.0017008,96438.0,96437.0,0.52235382]
[1740357610881,0.0017008,96438.0,96437.0,0.51460861]
[1740357612373,0.0017008,96438.0,96437.0,0.51360861]
[1740357612572,0.0017008,96438.0,96437.0,0.51460861]
[1740357613051,0.0017008,96438.0,96437.0,0.51360861]
[1740357613282,0.0017008,96438.0,96437.0,0.51460861]
[1740357614289,0.0017008,96438.0,96437.0,0.51360861]
[1740357615056,0.0017008,96438.0,96437.0,0.66914961]
[1740357615470,0.0017008,96438.0,96437.0,0.51460861]
[1740357616711,0.0017008,96438.0,96437.0,0.43800861]
[1740357617362,0.1572408,96438.0,96437.0,0.11270861]
[1740357617724,0.0017008,96438.0,96437.0,0.10458482]
[1740357618148,0.0017008,96438.0,96437.0,0.11268177]
[1740357618558,0.0017008,96438.0,96437.0,0.11168177]
[1740357618919,0.0027008,96438.0,96437.0,0.11168177]
[1740357619146,0.0027008,96438.0,96437.0,0.19028177]
[1740357619337,0.0027008,96438.0,96437.0,0.19152599]
[1740357619751,0.0057008,96438.0,96437.0,0.19152589]
[1740357619948,0.0047008,96438.0,96437.0,0.19152589]
[1740357620148,0.0017008,96438.0,96437.0,0.19152589]
[1740357620327,0.0017008,96438.0,96437.0,0.19252589]
[1740357620940,0.0017008,96438.0,96437.0,0.19577141]
[1740357621685,0.0017008,96438.0,96437.0,0.52107141]
[1740357621901,0.0017008,96438.0,96437.0,0.51982729]
[1740357622088,0.0017008,96438.0,96437.0,0.52758876]
[1740357622939,0.0017008,96438.0,96437.0,0.53792324]
[1740357623345,0.0017008,96438.0,96437.0,0.54311578]
[1740357624194,0.0017008,96438.0,96437.0,0.5327813]
[1740357625248,0.0017008,96438.0,96437.0,0.52758876]
[1740357635375,0.0017008,96438.0,96437.0,0.68312976]
[1740357638386,0.0017008,96438.0,96437.0,0.73004197]
[1740357639991,0.0017008,96438.0,96437.0,0.69767061]
[1740357640355,0.0017008,96438.0,96437.0,0.7300415]
[1740357641030,0.0017008,96438.0,96437.0,0.73004108]
[1740357641237,0.0017008,96438.0,96437.0,0.69767061]
[1740357641480,0.0017008,96438.0,96437.0,0.90004095]
[1740357646622,0.0017008,96438.0,96437.0,0.89904095]
[1740357646819,0.0017008,96438.0,96437.0,1.13004095]
[1740357647029,0.0017008,96438.0,96437.0,1.13504095]
[1740357649550,0.0017008,96438.0,96437.0,1.10267061]
[1740357650216,0.0017008,96438.0,96437.0,1.08267061]
[1740357650631,0.0017008,96438.0,96437.0,1.10267061]
[1740357651673,0.0017008,96438.0,96437.0,1.08267061]
[1740357652720,0.0017008,96438.0,96437.0,0.85167061]
[1740357652933,0.0017008,96438.0,96437.0,0.85712976]
[1740357653115,0.0017008,96438.0,96437.0,0.83712976]
[1740357653313,0.0017008,96438.0,96437.0,0.85712976]
[1740357654314,0.0017008,96438.0,96437.0,0.88954481]
[1740357655927,0.0017008,96438.0,96437.0,0.85712976]
[1740357656354,0.0017008,96438.0,96437.0,0.88955117]
[1740357656786,0.0017008,96438.0,96437.0,0.60852976]
[1740357657396,0.0017008,96438.0,96437.0,0.64095082]
[1740357657960,0.0017008,96438.0,96437.0,0.60852976]
[1740357658335,0.0017008,96438.0,96437.0,0.64095085]
[1740357658540,0.0017008,96438.0,96437.0,0.60852976]
[1740357659150,0.0017008,96438.0,96437.0,0.61372231]
[1740357659506,0.0017008,96438.0,96437.0,0.60872231]
[1740357659704,0.0017008,96438.0,96437.0,0.61272231]
[1740357660276,0.0017008,96438.0,96437.0,0.60872231]
[1740357660520,0.0017008,96438.0,96437.0,0.61272231]
[1740357660915,0.0017008,96438.0,96437.0,0.60872231]
[1740357661318,0.0017008,96438.0,96437.0,0.45618131]
[1740357661749,0.0017008,96438.0,96437.0,0.61172231]
[1740357662395,0.0017008,96438.0,96437.0,0.45618131]
[1740357662570,0.01224604,96438.0,96437.0,0.45318131]
[1740357662780,0.0017008,96438.0,96437.0,0.45518131]
[1740357663211,0.0017008,96438.0,96437.0,0.60552976]
[1740357663381,0.0017008,96438.0,96437.0,0.60352976]
[1740357663585,0.0017008,96438.0,96437.0,0.60552976]
[1740357664808,0.0017008,96438.0,96437.0,0.59776829]
[1740357665960,0.0017008,96438.0,96437.0,0.44222729]
[1740357666196,0.2336408,96438.0,96437.0,0.44222729]
[1740357666607,0.0781008,96438.0,96437.0,0.44222729]
[1740357666819,0.0781008,96438.0,96437.0,0.44022729]
[1740357667027,0.2336408,96438.0,96437.0,0.44022729]
[1740357667466,0.2796408,96438.0,96437.0,0.3375816]
[1740357667685,0.2796408,96438.0,96437.0,0.33433608]
[1740357668750,0.2816408,96438.0,96437.0,0.00903608]
[1740357668954,0.2826408,96438.0,96437.0,0.00903608]
[1740357669167,0.2806408,96438.0,96437.0,0.00093913]
[1740357669397,0.2826408,96438.0,96437.0,0.00093913]
[1740357669604,0.2846408,96438.0,96437.0,0.00093913]
[1740357670235,0.4346408,96438.0,96437.0,0.00093913]
[1740357671651,0.4316408,96438.0,96437.0,0.00093913]
[1740357671914,0.4296408,96438.0,96437.0,0.00093913]
[1740357672140,0.4386408,96438.0,96437.0,0.00093913]
[1740357676558,2.1380418,96438.0,96437.0,0.00093913]
[1740357676905,2.1196218,96438.0,96437.0,0.00093913]
[1740357677547,0.33304569,96437.0,96391.0,0.0004]
[1740357677750,0.15531398,96399.0,96391.0,0.0004]
[1740357677955,0.15626893,96399.0,96397.0,0.00182933]
[1740357678167,0.00124397,96398.0,96397.0,0.00182933]
[1740357678593,0.0497,96402.0,96397.0,0.00182933]
[1740357678796,0.01017992,96400.0,96397.0,0.00182933]
[1740357679008,0.0497,96402.0,96397.0,0.00182933]
[1740357679415,0.00776461,96400.0,96397.0,0.00182933]
[1740357679648,0.003,96398.0,96397.0,0.00182933]
[1740357680059,0.02917443,96400.0,96397.0,0.00182933]
[1740357680266,0.01740105,96400.0,96397.0,0.00182933]
[1740357681289,0.0232392,96399.0,96397.0,0.00182933]
[1740357682023,0.007,96398.0,96397.0,0.00182933]
[1740357682194,0.153,96398.0,96397.0,0.00182933]
[1740357682431,0.15,96398.0,96397.0,0.00182933]
[1740357682637,0.15203815,96398.0,96397.0,0.00182933]
[1740357683125,0.15703815,96398.0,96397.0,0.00182933]
[1740357683554,0.16103815,96398.0,96397.0,0.00182933]
[1740357684607,0.01793815,96398.0,96397.0,0.00182933]
[1740357684786,0.0269392,96398.0,96397.0,0.00182933]
[1740357688550,0.0179392,96398.0,96397.0,0.00182933]
[1740357688751,0.0309392,96398.0,96397.0,0.00182933]
[1740357688898,0.0239392,96398.0,96397.0,0.00182933]